Cogmind - Beta 17 @@@ ROGUE MODE // 2026.07.30 @ 14:52:33 Player: Conwew Result: Destroyed by Executioner with Helical Railgun Performance ------------- Evolutions (9) 4500 Regions Visited (22) 4400 Robots Destroyed (52) 260 Value Destroyed (2129) 2129 Prototype IDs (52) 1040 Alien Tech Used (0) 0 Bonus (13321) 13321 TOTAL SCORE: 25650 Bonus ------- High Alert Combat Kills 57 Follower Combat Kills 945 Entered DSFs 500 Network Hubs Disabled 400 Aligned with FarCom 300 Met Zhirov 300 Met Warlord at Base 500 MAIN.C Attacked Warlord 500 Built Enhanced Grunts 300 A7 Reached Mainframe 300 Read Decrypted Archives 300 Met Warlord at Research 2000 Met MAIN.C 5000 Met Warlord at Command 2000 Friendly Fire -81 Cogmind --------- Core Integrity 0/1600 Matter 63/300 Energy 490/490 System Corruption 0% Temperature Cool (-200) Movement Treading (160) Location -1/Command Parts ------- > --- POWER (3) -------- Quantum Reactor Zero-point Reactor > --- PROPULSION (7) --- Medium Treads Spiked Heavy Treads Spiked Heavy Treads > --- UTILITY (13) ----- Advanced Cryofiber Web Advanced Heat Sink Advanced Heat Sink Advanced Visual Processing Unit Armor Integrity Analyzer Advanced Recoil Stabilizer Graphene Brace Advanced Focal Shield Thermal Barrier Advanced Hardlight Generator Improved System Guard > --- WEAPON (2) ------- Linear Accelerator Micro-nuke Launcher > --- INVENTORY (5) ---- Advanced Heavy Siege Treads Advanced Power Amplifier Improved Shock Absorption System Enhanced Quantum Rifle Peak State ------------ > --- POWER ------------ Quantum Reactor Quantum Reactor Zero-point Reactor > --- PROPULSION ------- Medium Treads Spiked Heavy Treads Spiked Heavy Treads Spiked Heavy Treads > --- UTILITY ---------- Advanced Cryofiber Web Advanced Heat Sink Advanced Gravity Neutralizer Advanced Visual Processing Unit Armor Integrity Analyzer Advanced Recoil Stabilizer Improved Kinecellerator Graphene Brace Advanced Focal Shield Thermal Barrier Advanced Hardlight Generator Advanced System Shield Improved System Guard > --- WEAPON ----------- Enhanced Quantum Rifle Linear Accelerator > --- INVENTORY -------- Light Quantum Reactor Advanced Heavy Siege Treads Advanced Power Amplifier Improved Shock Absorption System [Rating: 178] Favorites ----------- Power Quantum Reactor Engine Light Ion Engine Power Core Fission Core Reactor Quantum Reactor Propulsion Nuclear Pulse Thruster Treads Spiked Heavy Treads Leg Aluminum Leg Flight Unit Nuclear Pulse Thruster Utility Hacking Suite Device Advanced Heat Sink Processor Visual Processing Unit Hackware Hacking Suite Protection Heavy Armor Plating Weapon Assault Rifle Energy Gun Vortex Shotgun Energy Cannon Proton Cannon Ballistic Gun Assault Rifle Ballistic Cannon Slug Cannon Launcher Micro-nuke Launcher Special Weapon Improved Remote Datajack Impact Weapon Power Maul Special Melee Weapon Advanced Datajack Build | -11 -10 -10 -10 -9 -8 -7 -7 -6 -5 -5 -5 -5 -5 -4 -4 -4 -4 -3 -3 -2 -1 -1 ------- Run | Yrd Mat Min Exi Min Mat Fac DSF Fac Fac Ext Cet Arc Hub Fac Upp Upp War Pro Res Res Acc Com Slots Evolved 18 | . . . . . 4 2 . 2 2 . . . . 2 . . . . 2 2 2 . Power 2 | . . . . . . 1 . . . . . . . . . . . . . 1 . . Propulsion 5 | . . . . . 2 1 . . . . . . . . . . . . . 1 1 . Utility 11 | . . . . . 2 . . 2 2 . . . . 2 . . . . 2 . 1 . Weapon . | . . . . . . . . . . . . . . . . . . . . . . . Parts Attached 139 | 5 3 10 1 . 8 3 6 3 8 5 2 . 5 10 . . 2 . 2 8 5 53 Power 19 | 1 . 2 . . . 1 . 1 2 1 1 . . 1 . . . . . 1 1 7 Engine 6 | 1 . 2 . . . 1 . . . 1 1 . . . . . . . . . . . Core 5 | . . . . . . . . 1 2 . . . . . . . . . . . . 2 Reactor 8 | . . . . . . . . . . . . . . 1 . . . . . 1 1 5 Propulsion 43 | 2 1 6 1 . 4 . 5 . . 3 . . 4 3 . . . . 1 2 1 10 Treads 5 | . . . . . . . . . . . . . . . . . . . . . . 5 Leg 5 | 2 1 2 . . . . . . . . . . . . . . . . . . . . Wheel . | . . . . . . . . . . . . . . . . . . . . . . . Hover . | . . . . . . . . . . . . . . . . . . . . . . . Flight 33 | . . 4 1 . 4 . 5 . . 3 . . 4 3 . . . . 1 2 1 5 Utility 47 | . 2 . . . 4 . . 2 5 . 1 . . 4 . . . . 1 4 3 21 Device 27 | . 1 . . . 3 . . . 2 . . . . 1 . . . . . 2 2 16 Storage . | . . . . . . . . . . . . . . . . . . . . . . . Processor 8 | . . . . . 1 . . . . . . . . 1 . . . . . 2 1 3 Hackware 11 | . 1 . . . . . . 2 3 . 1 . . 2 . . . . 1 . . 1 Protection 1 | . . . . . . . . . . . . . . . . . . . . . . 1 Artifact . | . . . . . . . . . . . . . . . . . . . . . . . Weapon 30 | 2 . 2 . . . 2 1 . 1 1 . . 1 2 . . 2 . . 1 . 15 Energy Gun 6 | . . . . . . . . . . . . . . 1 . . 2 . . . . 3 Energy Cannon 1 | . . . . . . . . . . 1 . . . . . . . . . . . . Ballistic Gun 6 | 2 . 2 . . . 2 . . . . . . . . . . . . . . . . Ballistic Cannon 10 | . . . . . . . . . . . . . 1 . . . . . . . . 9 Launcher 2 | . . . . . . . . . . . . . . . . . . . . . . 2 Special Weapon 2 | . . . . . . . 1 . 1 . . . . . . . . . . . . . Impact Weapon 1 | . . . . . . . . . . . . . . . . . . . . . . 1 Slashing Weapon . | . . . . . . . . . . . . . . . . . . . . . . . Piercing Weapon . | . . . . . . . . . . . . . . . . . . . . . . . Special Melee Weapon 2 | . . . . . . . . . . . . . . 1 . . . . . 1 . . Unidentified Prototypes 13 | . . . . . 1 . . . 1 . . . . 1 . . 1 . . 1 2 6 Parts Lost 39 | . . 1 . . . . 1 . . . 3 . 2 . . . . . . . 4 28 Power 7 | . . . . . . . 1 . . . 1 . . . . . . . . . 1 4 Propulsion 12 | . . 1 . . . . . . . . 1 . 1 . . . . . . . . 9 Utility 15 | . . . . . . . . . . . 1 . . . . . . . . . 1 13 Weapon 5 | . . . . . . . . . . . . . 1 . . . . . . . 2 2 Highest Loss Streak 13 | . . 1 . . . . 1 . . . 3 . 1 . . . . . . . 4 13 To Critical Strikes 1 | . . . . . . . 1 . . . . . . . . . . . . . . . Average Backups 4 | . 3 4 5 5 3 4 4 4 4 5 4 4 4 3 3 3 3 4 4 4 4 4 Power . | . . . . . . . . . . . . . . . . . . . . . . 1 Propulsion 1 | . 2 3 3 3 . 1 1 1 2 2 2 2 1 . . . . . . 1 1 . Utility 2 | . . . 1 1 . 1 2 2 2 3 2 2 2 2 3 3 3 3 3 3 3 2 Weapon . | . 1 . . . . . . . . . . . . . . . . . . . . . Tool/Special . | . . . . . . . . . . . . . . . . . . . . . . . Unused Backups 13 | . . . . . 2 . 4 . 1 . . . . . . . . . . 1 1 4 Power 1 | . . . . . . . . . . . . . . . . . . . . . . 1 Propulsion 5 | . . . . . 1 . 2 . . . . . . . . . . . . . 1 1 Utility 4 | . . . . . . . 1 . 1 . . . . . . . . . . 1 . 1 Weapon 2 | . . . . . 1 . 1 . . . . . . . . . . . . . . . Tool/Special 1 | . . . . . . . . . . . . . . . . . . . . . . 1 Average Slot Usage (%) 88 | . 88 100 100 100 93 98 97 93 99 100 93 94 95 81 89 89 93 94 85 90 84 79 Engine 4 | . 14 14 14 14 9 14 13 6 3 . 9 11 11 . . . 4 5 4 4 1 . Core 1 | . . . . . . . . . 6 10 . . . . . . . . . . . . Reactor 4 | . . . . . . . . . . . . . . 4 5 5 5 5 3 7 10 9 Treads 4 | . . . . . . . . . . . . . . . . . . . . . . 11 Leg 1 | . 28 11 . . . . . . . . . . . . . . . . . . . . Flight 15 | . . 16 28 28 35 37 37 33 29 29 23 23 25 19 21 21 21 21 14 16 15 2 Device 14 | . 10 14 14 14 12 15 15 13 10 11 5 5 5 4 5 5 8 10 9 12 14 20 Processor 8 | . . . . . 7 7 7 6 5 5 5 5 5 5 5 5 5 5 4 4 5 14 Hackware 19 | . 6 14 14 14 9 7 7 19 28 29 33 35 35 41 42 42 38 36 37 34 31 11 Energy Gun 1 | . . . . . . . . . . . . . . 2 5 5 8 10 9 7 6 . Ballistic Gun 6 | . 28 28 28 28 18 15 10 13 10 4 5 5 2 . . . . . . . . . Ballistic Cannon 1 | . . . . . . . . . . . . . 1 . . . . . . . . 4 Peak Build Rating 178 | 5 9 10 11 11 20 26 50 55 72 78 77 73 79 93 92 92 104 104 116 142 166 178 Average Rating 93 | 3 7 9 10 11 15 21 39 50 66 74 72 73 74 82 92 92 101 104 113 137 156 145 On Entrance 60 | . 5 9 10 11 11 17 26 43 55 72 77 73 73 43 92 92 92 104 104 116 142 132 Avg Prop Armor Cover (%) 4 | . . . . . 3 2 2 . . . . . . 11 . . 6 6 6 . . 8 Naked Turns . | . . . . . . . . . . . . . . . . . . . . . . . Heaviest Build 103 | 7 8 8 8 8 11 18 22 25 26 34 30 23 27 23 23 23 37 37 37 56 63 103 Greatest Support 269 | 20 20 20 8 8 16 19 30 30 30 33 33 26 32 29 29 29 37 37 52 64 71 269 Greatest Overweight (x) 8 | 1 . . . . . . 1 . . 8 . . . . . . . . . . . 4 Average Overweight (x) . | . . . . . . . . . . . . . . . . . . . . . . . Largest Inventory Capacity 5 | 5 5 5 5 5 5 5 5 5 5 5 5 5 5 5 5 5 5 5 5 5 5 5 Average Capacity 5 | 5 5 5 5 5 5 5 5 5 5 5 5 5 5 5 5 5 5 5 5 5 5 5 Most Carried 5 | . 5 5 5 5 5 5 5 5 5 5 5 4 5 5 3 3 5 4 5 5 5 5 Average Carried 4 | . 3 4 4 5 3 4 4 4 4 5 4 4 4 3 3 3 3 4 4 4 4 4 Final Capacity 5 | 5 5 5 5 5 5 5 5 5 5 5 5 5 5 5 5 5 5 5 5 5 5 5 Final Carried 5 | . 5 5 5 5 5 5 5 5 5 5 4 4 5 3 3 3 4 4 5 5 5 5 Class Distribution -------------------- 26% | Scavenger-Mutant 25% | Wizard-Sprinter 17% | Hacker-Sprinter 12% | Hacker-Mutant 8% | Scavenger-Sprinter 6% | Mutant Dominant Class ---------------- Mutant | -10/Materials Scavenger-Mutant | -10/Mines Scavenger-Mutant | -10/Exiles Scavenger-Mutant | -9/Mines Scavenger-Sprinter | -8/Materials Scavenger-Sprinter | -7/Factory Commander-Sprinter | -7/DSF Hacker-Sprinter | -6/Factory Hacker-Sprinter | -5/Factory Hacker-Sprinter | -5/Extension Wizard-Sprinter | -5/Cetus Wizard-Sprinter | -5/Archives Wizard-Sprinter | -5/Hub_04(d) Wizard-Sprinter | -4/Factory Wizard-Sprinter | -4/Upper Caves Wizard-Sprinter | -4/Upper Caves Wizard-Sprinter | -4/Warlord Wizard-Sprinter | -3/Proximity Caves Wizard-Sprinter | -3/Research Wizard-Sprinter | -2/Research Wizard-Sprinter | -1/Access Scavenger-Mutant | -1/Command Resources | -11 -10 -10 -10 -9 -8 -7 -7 -6 -5 -5 -5 -5 -5 -4 -4 -4 -4 -3 -3 -2 -1 -1 ----------- Run | Yrd Mat Min Exi Min Mat Fac DSF Fac Fac Ext Cet Arc Hub Fac Upp Upp War Pro Res Res Acc Com Matter Collected 4540 | 187 261 239 . . 52 102 60 30 106 358 97 . . . . 86 . . . 266 60 2636 Remotely . | . . . . . . . . . . . . . . . . . . . . . . . Salvage Created 1317 | . 272 256 . . 52 . . . 106 . . . . . . . . . . . 35 596 Parts 74 | . 15 21 . . 4 . . . 8 . . . . . . . . . . . . 26 Haulers Intercepted 1 | . 1 . . . . . . . . . . . . . . . . . . . . . Recyclers Shooed 1 | . . . . . . . . . . . . . . . . . . . . . . 1 Parts Field Recycled . | . . . . . . . . . . . . . . . . . . . . . . . Retrieved Matter . | . . . . . . . . . . . . . . . . . . . . . . . Parts Self-Destructed . | . . . . . . . . . . . . . . . . . . . . . . . Prevented . | . . . . . . . . . . . . . . . . . . . . . . . Parts Restored . | . . . . . . . . . . . . . . . . . . . . . . . Kills | -11 -10 -10 -10 -9 -8 -7 -7 -6 -5 -5 -5 -5 -5 -4 -4 -4 -4 -3 -3 -2 -1 -1 ------- Run | Yrd Mat Min Exi Min Mat Fac DSF Fac Fac Ext Cet Arc Hub Fac Upp Upp War Pro Res Res Acc Com Combat Hostiles Destroyed 42 | . 5 10 . . 3 . . . 5 . . . . . . . . . . . 1 18 Guns 26 | . 5 10 . . 3 . . . 5 . . . . . . . . . . . 1 2 Cannons 9 | . . . . . . . . . . . . . . . . . . . . . . 9 AOE 7 | . . . . . . . . . . . . . . . . . . . . . . 7 Classes Destroyed 13 | . 3 4 . . . . . . . . . . . . . . . . . . 1 5 Worker 3 | . . 1 . . . . . . . . . . . . . . . . . . . 2 Tunneler 1 | . . 1 . . . . . . . . . . . . . . . . . . . . Hauler 1 | . 1 . . . . . . . . . . . . . . . . . . . . . Recycler 3 | . . 1 . . . . . . . . . . . . . . . . . . . 2 Operator 2 | . 1 . . . . . . . 1 . . . . . . . . . . . . . Swarmer 28 | . . 10 . . 3 . . . 5 . . . . . . . . . . . . 10 Grunt 7 | . 5 . . . . . . . . . . . . . . . . . . . . 2 Hunter 1 | . . . . . . . . . . . . . . . . . . . . . 1 . Programmer 2 | . . . . . . . . . . . . . . . . . . . . . . 2 Behemoth 1 | . . . . . . . . . . . . . . . . . . . . . . 1 Striker 1 | . . . . . . . . . . . . . . . . . . . . . . 1 Executioner 1 | . . . . . . . . . . . . . . . . . . . . . . 1 Alpha 7 1 | . . . . . . . . . . . . . . . . . . . . . . 1 Best Kill Streak 8 | . 2 8 . . 3 . . . 2 . . . . . . . . . . . 1 8 Combat Bots Only 6 | . 2 6 . . 3 . . . 2 . . . . . . . . . . . 1 6 Max Kills in Single Turn 3 | . 1 1 . . 1 . . . 1 . . . . . . . . . . . 1 3 Gunslinging . | . . . . . . . . . . . . . . . . . . . . . . . Exploded 3 | . . . . . . . . . . . . . . . . . . . . . . 3 Melee . | . . . . . . . . . . . . . . . . . . . . . . . Uniques/NPCs Destroyed . | . . . . . . . . . . . . . . . . . . . . . . . Combat | -11 -10 -10 -10 -9 -8 -7 -7 -6 -5 -5 -5 -5 -5 -4 -4 -4 -4 -3 -3 -2 -1 -1 -------- Run | Yrd Mat Min Exi Min Mat Fac DSF Fac Fac Ext Cet Arc Hub Fac Upp Upp War Pro Res Res Acc Com Hostile Shots Fired 763 | . 18 54 . . 8 . 42 . 16 17 23 . 13 . 2 12 . 14 . . 78 466 Missed 289 | . 7 11 . . 2 . 28 . 5 9 13 . 4 . 1 6 . 8 . . 43 152 Hits 474 | . 11 43 . . 6 . 14 . 11 8 10 . 9 . 1 6 . 6 . . 35 314 Melee 5 | . . . . . . . . . . . . . 1 . . . . . . . . 4 Projectile 469 | . 11 43 . . 6 . 14 . 11 8 10 . 8 . 1 6 . 6 . . 35 310 AOE 2 | . . . . . . . . . . . . . . . . . . . . . . 2 Critical Strikes 31 | . . . . . . . 1 . . . 1 . . . . . . . . . 2 27 Actively Blocked 27 | . . . . . . . . . . . . . . . . . . . . . . 27 Part Disruptions 5 | . . . . . . . . . . . . . . . . . . . . . . 5 Damage Taken 8705 | . 139 379 . . 47 . 144 . 161 211 239 . 225 . 21 111 . 83 . . 657 6288 Core 1834 | . 34 58 . . 6 . 16 . . 24 42 . 26 . . 16 . . . . 146 1466 Absorbed by Shields 1534 | . . . . . . . . . . . 70 . . . . . . . . . . 1464 Ignored by Resistances 1814 | . . . . . . . . . . . . . . . . . . . . . . 1814 Regen/Repaired (Parts) 615 | . . . . . . . . . 54 . . . . . . . 1 . 150 . 62 348 Core Remaining (%) 94 | 100 . . . 63 98 . 97 100 . . . . 90 . . . . 98 100 100 . . Volleys Fired 340 | . 28 24 . . 4 . 5 . 17 25 12 . 2 . . . . . . 2 4 217 Largest 2 | . 2 2 . . 2 . 1 . 2 1 1 . 1 . . . . . . 2 2 2 Hottest 146 | . 40 40 . . 40 . . . 56 75 28 . 44 . . . . . . 120 120 146 Shots Fired 520 | . 56 48 . . 8 . 5 . 31 25 12 . 2 . . . . . . 4 7 322 Gun 202 | . 56 48 . . 8 . . . 28 2 11 . . . . . . . . 4 7 38 Cannon 259 | . . . . . . . . . . 1 . . 2 . . . . . . . . 256 Launcher 28 | . . . . . . . . . . . . . . . . . . . . . . 28 Special 31 | . . . . . . . 5 . 3 22 1 . . . . . . . . . . . Kinetic 411 | . 56 48 . . 8 . . . 28 2 11 . 2 . . . . . . . . 256 Thermal 38 | . . . . . . . . . . . . . . . . . . . . . . 38 Explosive 28 | . . . . . . . . . . . . . . . . . . . . . . 28 Electromagnetic 1 | . . . . . . . . . . 1 . . . . . . . . . . . . Entropic 11 | . . . . . . . . . . . . . . . . . . . . 4 7 . Robot Hit Streak 18 | . 7 5 . . 2 . 5 . 5 18 9 . . . . . . . . 4 2 13 Robot Miss Streak 12 | . 3 6 . . 1 . 1 . 12 1 5 . . . . . . . . 4 5 5 Penetration Max 1 | . . . . . . . . . . . . . . . . . . . . . . 1 Secondary Targets 4 | . 1 2 . . 1 . . . . . . . . . . . . . . . . . Max Gunslinging Chain 1 | . 1 1 . . 1 . . . . . . . . . . . . . . . . . Shots Hit Robots 233 | . 32 25 . . 4 . 4 . 25 19 12 . . . . . . . . 7 5 100 Core Hits 129 | . 12 13 . . 3 . . . 29 . 20 . . . . . . . . 2 3 47 Critical Kills 3 | . 1 . . . . . . . . . . . . . . . . . . . . 2 Critical Parts Destroyed 6 | . . . . . . . . . . . . . . . . . . . . . . 6 Critical Strikes 12 | . 1 . . . . . . . . . . . . . . . . . . . . 11 Destroy 9 | . 1 . . . . . . . . . . . . . . . . . . . . 8 Blast 3 | . . . . . . . . . . . . . . . . . . . . . . 3 Melee Attacks 9 | . . . . . . . . . . . . . . . . . . . . 5 . 4 Impact 4 | . . . . . . . . . . . . . . . . . . . . . . 4 Slashing . | . . . . . . . . . . . . . . . . . . . . . . . Piercing 5 | . . . . . . . . . . . . . . . . . . . . 5 . . Sneak Attacks 1 | . . . . . . . . . . . . . . . . . . . . 1 . . Combat Hostiles . | . . . . . . . . . . . . . . . . . . . . . . . Follow-up Attacks . | . . . . . . . . . . . . . . . . . . . . . . . Damage Inflicted 7371 | . 397 356 . . 47 . . . 315 . 231 . 6 . . . . . . 182 233 5604 Guns 1926 | . 397 356 . . 47 . . . 315 . 231 . . . . . . . . 166 233 181 Cannons 3196 | . . . . . . . . . . . . . . . . . . . . . . 3196 Explosions 2220 | . . . . . . . . . . . . . . . . . . . . . . 2220 Melee 16 | . . . . . . . . . . . . . . . . . . . . 16 . . Ramming 13 | . . . . . . . . . . . . . 6 . . . . . . . . 7 Kinetic 4542 | . 397 356 . . 47 . . . 315 . 231 . . . . . . . . . . 3196 Thermal 181 | . . . . . . . . . . . . . . . . . . . . . . 181 Explosive 2220 | . . . . . . . . . . . . . . . . . . . . . . 2220 Electromagnetic . | . . . . . . . . . . . . . . . . . . . . . . . Impact . | . . . . . . . . . . . . . . . . . . . . . . . Slashing . | . . . . . . . . . . . . . . . . . . . . . . . Piercing 16 | . . . . . . . . . . . . . . . . . . . . 16 . . Entropic 399 | . . . . . . . . . . . . . . . . . . . . 166 233 . Highest Corruption 6 | . . . . . . . . . 1 1 1 1 2 . . . . . . . . 6 Average Corruption 1 | . . . . . . . . . 1 1 1 1 1 . . . . . . . . 2 Corruption Purged . | . . . . . . . . . . . . . . . . . . . . . . . Corruption Blocked 15 | . . . . . . . . . . . . . . . . . . . . . . 15 Effects 20 | . . . . . . . . . 3 4 1 . 1 . . . . . . . . 11 Message Errors 3 | . . . . . . . . . . 1 . . . . . . . . . . . 2 Matter Fused 4 | . . . . . . . . . . 1 . . . . . . . . . . . 3 Heat Flow Errors 3 | . . . . . . . . . 1 . . . . . . . . . . . . 2 Energy Discharges 4 | . . . . . . . . . 1 2 . . 1 . . . . . . . . . Data Loss (minor) 2 | . . . . . . . . . . . 1 . . . . . . . . . . 1 Data Loss (major) 2 | . . . . . . . . . 1 . . . . . . . . . . . . 1 Misfires 1 | . . . . . . . . . . . . . . . . . . . . . . 1 Weapon Failures 1 | . . . . . . . . . . . . . . . . . . . . . . 1 Overload Shots . | . . . . . . . . . . . . . . . . . . . . . . . Overflow Damage 225 | . . . . . . . . . . . . . . . . . . . . . . 225 Projectiles 97 | . . . . . . . . . . . . . . . . . . . . . . 97 Explosions 128 | . . . . . . . . . . . . . . . . . . . . . . 128 Melee . | . . . . . . . . . . . . . . . . . . . . . . . Knockbacks 15 | . . . . . . . . . . . . . . . . . . . . . . 15 Impact . | . . . . . . . . . . . . . . . . . . . . . . . Kinetic 15 | . . . . . . . . . . . . . . . . . . . . . . 15 Secondary . | . . . . . . . . . . . . . . . . . . . . . . . Self-Inflicted Damage 83 | . . . . . . . . . . . . . 3 . . . . . . . . 80 Shots 2 | . . . . . . . . . . . . . . . . . . . . . . 2 Rammed 2 | . . . . . . . . . . . . . 1 . . . . . . . . 1 Targets Rammed 2 | . . . . . . . . . . . . . 1 . . . . . . . . 1 Kicked . | . . . . . . . . . . . . . . . . . . . . . . . Crushed . | . . . . . . . . . . . . . . . . . . . . . . . Highest Temperature 199 | . 2 . . . . . . . 199 . . . 47 . . . . . . 63 171 22 Average Temperature 34 | . 2 . . . . . . . 101 . . . 9 . . . . . . 24 58 14 Received Heat Transfer 453 | . 78 . . . . . 36 . . 36 31 . 27 . . . . . . . 9 236 Siege Activations . | . . . . . . . . . . . . . . . . . . . . . . . Martial Activations . | . . . . . . . . . . . . . . . . . . . . . . . Shielding Activations . | . . . . . . . . . . . . . . . . . . . . . . . Robots Disrupted . | . . . . . . . . . . . . . . . . . . . . . . . Combat Hostiles . | . . . . . . . . . . . . . . . . . . . . . . . Robots Corrupted . | . . . . . . . . . . . . . . . . . . . . . . . Combat Hostiles . | . . . . . . . . . . . . . . . . . . . . . . . Parts Fried . | . . . . . . . . . . . . . . . . . . . . . . . Impact Corruptions . | . . . . . . . . . . . . . . . . . . . . . . . Robots Melted . | . . . . . . . . . . . . . . . . . . . . . . . Combat Hostiles . | . . . . . . . . . . . . . . . . . . . . . . . Parts Melted . | . . . . . . . . . . . . . . . . . . . . . . . Heat Transferred 222 | . . . . . . . . . . . . . . . . . . . . . . 222 Parts Sabotaged 4 | . . . . . . . . . . . . . 4 . . . . . . . . . Parts Stolen . | . . . . . . . . . . . . . . . . . . . . . . . Parts Stripped . | . . . . . . . . . . . . . . . . . . . . . . . Power Chain Reactions . | . . . . . . . . . . . . . . . . . . . . . . . Alert | -11 -10 -10 -10 -9 -8 -7 -7 -6 -5 -5 -5 -5 -5 -4 -4 -4 -4 -3 -3 -2 -1 -1 ------- Run | Yrd Mat Min Exi Min Mat Fac DSF Fac Fac Ext Cet Arc Hub Fac Upp Upp War Pro Res Res Acc Com Maximum Alert Level 2 | . . 1 . . . . . . . . . . 1 . . . . . . . . 2 Low Security (%) 76 | 100 100 86 . 100 100 100 100 100 100 100 100 100 99 100 . . . . 100 100 100 45 Level 1 22 | . . 13 . . . . . . . . . . . . . . . . . . . 51 Level 2 1 | . . . . . . . . . . . . . . . . . . . . . . 3 Level 3 . | . . . . . . . . . . . . . . . . . . . . . . . Level 4 . | . . . . . . . . . . . . . . . . . . . . . . . Level 5 . | . . . . . . . . . . . . . . . . . . . . . . . High Security . | . . . . . . . . . . . . . . . . . . . . . . . Max Security . | . . . . . . . . . . . . . . . . . . . . . . . Peak Influence 478 | . 60 221 . . 62 . 2 6 146 114 129 13 202 98 . . . . 23 30 60 478 Initial 98 | . . . . . . . 2 . . . 59 13 . 98 . . . . 23 . . 32 Average 101 | . 12 123 . . 4 . 1 . 19 18 77 6 38 61 . . . . 3 3 13 210 Influence Increases 3698 | . 158 311 . . 102 4 . 6 198 521 115 . 402 . . 75 . 75 52 75 204 1400 Destroy 0b10 Robot/C 1460 | . 100 240 . . 60 . . . 100 280 80 . 160 . . . . . . 20 40 380 Destroy 0b10 Robot/NC 65 | . 10 15 . . . . . . 5 . 5 . 5 . . . . . . . . 25 Destroy Leader 214 | . 32 40 . . 10 . . . 10 30 . . 22 . . . . . . 10 20 40 Allied During Kill 160 | . . 16 . . . . . . . 79 8 . 57 . . . . . . . . . Trap Triggered on 0b10 20 | . . . . . . . . . . . . . . . . . . . 10 . . 10 Successful Hack 133 | . . . . . 17 4 . 6 8 8 . . 8 . . . . . 27 . 9 46 Select Force Hacks 150 | . . . . . . . . . . . . . 100 . . . . . . . . 50 Disable Machine 105 | . . . . . . . . . . 15 . . 30 . . . . . . . . 60 Destroy Structure 461 | . 1 . . . . . . . . 4 22 . 20 . . . . . . . . 414 Partial Spotted 210 | . 15 . . . 15 . . . 15 45 . . . . . . . . 15 . 30 75 Lose Combat Pursuer 720 | . . . . . . . . . 60 60 . . . . . 75 . 75 . 45 105 300 Influence Decreases 3220 | . 158 210 101 . 102 . 4 6 198 415 187 34 200 184 18 . 75 40 87 75 154 972 Entered New Map 388 | . . . 101 . . . 2 . . . 47 21 . 104 8 . 75 . 12 . . 18 Time Decay 1888 | . 158 200 . . 102 . . 6 71 211 110 13 58 80 10 . . 40 75 73 94 587 Lost Part 255 | . . 10 . . . . 2 . . . 30 . 10 . . . . . . . 40 163 Lost Ally 363 | . . . . . . . . . . 186 . . . . . . . . . 2 20 155 Purge Threat 326 | . . . . . . . . . 127 18 . . 132 . . . . . . . . 49 Squads Dispatched 24 | . 2 . . . 2 . . 1 3 2 . . 7 . . . . . 1 1 2 3 Investigation 3 | . . . . . . . . . . . . . 3 . . . . . . . . . Extermination 9 | . . . . . . . . 1 3 . . . . . . . . . 1 . 1 3 Reinforcement 10 | . 2 . . . 2 . . . . 2 . . 2 . . . . . . 1 1 . Assault 2 | . . . . . . . . . . . . . 2 . . . . . . . . . Garrison . | . . . . . . . . . . . . . . . . . . . . . . . Intercept . | . . . . . . . . . . . . . . . . . . . . . . . Searches Triggered . | . . . . . . . . . . . . . . . . . . . . . . . Construction Impeded . | . . . . . . . . . . . . . . . . . . . . . . . Haulers Reinforced 1 | . . . . . . . . . . . . . . . . . . . . 1 . . Active Scanning Responses . | . . . . . . . . . . . . . . . . . . . . . . . Cargo Convoy Interrupts . | . . . . . . . . . . . . . . . . . . . . . . . Stealth | -11 -10 -10 -10 -9 -8 -7 -7 -6 -5 -5 -5 -5 -5 -4 -4 -4 -4 -3 -3 -2 -1 -1 --------- Run | Yrd Mat Min Exi Min Mat Fac DSF Fac Fac Ext Cet Arc Hub Fac Upp Upp War Pro Res Res Acc Com Distress Signals 27 | . . . . . . . . . . 4 1 . 2 . . . . . . 6 1 13 Communications Jammed 90 | . . . . . . . . . . 6 . . 2 . . . . . . 70 12 . Distress Signals 85 | . . . . . . . . . . 6 . . 2 . . . . . . 70 7 . Times Spotted 217 | . 9 12 . . 6 . 7 . 12 14 5 . 21 . 3 7 10 5 1 19 21 65 Peak Tracking Total 22 | . 2 3 . . 4 . 4 . 5 6 5 . 22 . 3 7 7 5 2 9 10 10 Tactical Retreats 25 | . . . . . . . 1 . 2 3 . . . . . 1 . 2 . 2 3 11 ECM-based Alert Blocks 4 | . . . . . . . 2 . . . . . . . . . . . . . 2 . Traps | -11 -10 -10 -10 -9 -8 -7 -7 -6 -5 -5 -5 -5 -5 -4 -4 -4 -4 -3 -3 -2 -1 -1 ------- Run | Yrd Mat Min Exi Min Mat Fac DSF Fac Fac Ext Cet Arc Hub Fac Upp Upp War Pro Res Res Acc Com Traps Triggered 12 | . . . . . . . 3 . 1 3 . . 1 . . . . . . . 2 2 Indirectly . | . . . . . . . . . . . . . . . . . . . . . . . Trap Hack Attempts . | . . . . . . . . . . . . . . . . . . . . . . . Triggered . | . . . . . . . . . . . . . . . . . . . . . . . Disarmed . | . . . . . . . . . . . . . . . . . . . . . . . Reprogrammed 2 | . . . . . . . . . . . . . . . . . . . 1 . . 1 Reused 2 | . . . . . . . . . . . . . . . . . . . 1 . . 1 Traps Extracted . | . . . . . . . . . . . . . . . . . . . . . . . Installed . | . . . . . . . . . . . . . . . . . . . . . . . Triggered 2 | . . . . . . . . . . . . . . . . . . . 1 . . 1 Machines | -11 -10 -10 -10 -9 -8 -7 -7 -6 -5 -5 -5 -5 -5 -4 -4 -4 -4 -3 -3 -2 -1 -1 ---------- Run | Yrd Mat Min Exi Min Mat Fac DSF Fac Fac Ext Cet Arc Hub Fac Upp Upp War Pro Res Res Acc Com Machines Disabled 7 | . . . . . . . . . . 1 . . 2 . . . . . . . . 4 Max in Single Turn 1 | . . . . . . . . . . 1 . . . . . . . . . . . 1 Garrison Access 5 | . . . . . . . . . . . . . 1 . . . . . 1 1 2 . Phase Generator 1 | . . . . . . . . . . . . . . . . . . . . . . 1 Network Hub 2 | . . . . . . . . . . . . . 2 . . . . . . . . . Machines Repaired . | . . . . . . . . . . . . . . . . . . . . . . . Machines Dismantled . | . . . . . . . . . . . . . . . . . . . . . . . Machines Sabotaged 3 | . . . . . . . . . . . . . 2 . . . . . . . . 1 Overloaded Fab Kills . | . . . . . . . . . . . . . . . . . . . . . . . Hacking | -11 -10 -10 -10 -9 -8 -7 -7 -6 -5 -5 -5 -5 -5 -4 -4 -4 -4 -3 -3 -2 -1 -1 --------- Run | Yrd Mat Min Exi Min Mat Fac DSF Fac Fac Ext Cet Arc Hub Fac Upp Upp War Pro Res Res Acc Com Machines Accessed 74 | . 1 1 2 . 4 2 . 2 6 7 2 1 3 . . . 9 . 8 2 10 14 Terminals 42 | . 1 . . . 3 1 . 2 5 7 2 . 3 . . . . . 3 . 4 11 Fabricators 4 | . . . . . . . . . . . . . . . . . . . 2 1 1 . Repair Stations 5 | . . . . . . . . . 1 . . . . . . . . . 1 . 1 2 Recycling Units 1 | . . . . . . . . . . . . . . . . . . . . . . 1 Scanalyzers 4 | . . . . . . 1 . . . . . . . . . . . . 1 . 2 . Garrison Access 5 | . . . . . 1 . . . . . . . . . . . . . 1 1 2 . Total Hacks 293 | . 3 1 5 . 10 5 . 6 23 9 5 25 16 . . . 21 . 47 6 37 74 Successful 209 | . . 1 5 . 9 2 . 2 16 9 3 25 10 . . . 21 . 35 5 22 44 Failed 82 | . 3 . . . 1 3 . 4 7 . 2 . 6 . . . . . 12 1 14 29 Catastrophic 7 | . . . . . . . . . 2 . . . . . . . . . 1 . . 4 Database Lockouts 2 | . . . . . . . . . . . . . . . . . . . . . 1 1 Manual 99 | . 3 . 1 . 8 . . 6 15 3 1 . 10 . . . . . 12 6 5 29 Terminals 154 | . 3 . . . 9 3 . 6 19 9 5 . 16 . . . . . 17 . 17 50 Fabricators 15 | . . . . . . . . . . . . . . . . . . . 5 5 5 . Repair Stations 37 | . . . . . . . . . 4 . . . . . . . . . 12 . 4 17 Recycling Units 7 | . . . . . . . . . . . . . . . . . . . . . . 7 Scanalyzers 20 | . . . . . . 2 . . . . . . . . . . . . 11 . 7 . Garrison Access 8 | . . . . . 1 . . . . . . . . . . . . . 2 1 4 . Terminal Hacks 117 | . . 1 5 . 2 1 . . 6 7 3 25 4 . . . 21 . 12 . 10 20 Record 63 | . . . 4 . . . . . . 1 2 25 2 . . . 19 . 1 . 5 4 Part Schematic 1 | . . . . . . . . . . . . . . . . . . . . . . 1 Prototype ID Bank 3 | . . . . . . . . . 1 . . . . . . . . . 1 . . 1 Open Door 14 | . . 1 . . . . . . 1 5 1 . . . . . 2 . . . 3 1 Open DSF 1 | . . . . . . 1 . . . . . . . . . . . . . . . . Level Access Points 1 | . . . . . . . . . . . . . . . . . . . 1 . . . Branch Access Points 2 | . . . . . . . . . . . . . 1 . . . . . 1 . . . Emergency Access Points 1 | . . . . . . . . . . . . . . . . . . . . . . 1 Machine Index 2 | . . . . . . . . . . . . . . . . . . . 1 . . 1 Terminal Index 1 | . . . . . . . . . . . . . . . . . . . . . . 1 Alert Level 3 | . . . . . 1 . . . 1 . . . . . . . . . 1 . . . Unreport Threat 5 | . . . . . 1 . . . 1 1 . . 1 . . . . . . . . 1 Locate Traps 4 | . . . . . . . . . . . . . . . . . . . 2 . 1 1 Reprogram Traps 2 | . . . . . . . . . . . . . . . . . . . 1 . . 1 Dispatch Records 1 | . . . . . . . . . . . . . . . . . . . . . . 1 Security Status 1 | . . . . . . . . . . . . . . . . . . . 1 . . . Surveillance Status 1 | . . . . . . . . . . . . . . . . . . . . . . 1 Recall Extermination 1 | . . . . . . . . . . . . . . . . . . . . . . 1 Registered Components 1 | . . . . . . . . . 1 . . . . . . . . . . . . . Registered Prototypes 1 | . . . . . . . . . . . . . . . . . . . . . . 1 Zone Layout 5 | . . . . . . . . . 1 . . . . . . . . . 2 . 1 1 Proto ID Catalog 1 | . . . 1 . . . . . . . . . . . . . . . . . . . Disengage Seal 2 | . . . . . . . . . . . . . . . . . . . . . . 2 Fabricator Hacks 3 | . . . . . . . . . . . . . . . . . . . 1 1 1 . Network Status 2 | . . . . . . . . . . . . . . . . . . . 1 . 1 . Build 1 | . . . . . . . . . . . . . . . . . . . . 1 . . Repair Station Hacks 25 | . . . . . . . . . 4 . . . . . . . . . 7 . 2 12 Scan Component 13 | . . . . . . . . . 2 . . . . . . . . . 4 . 1 6 Repair 11 | . . . . . . . . . 2 . . . . . . . . . 3 . 1 5 Refit 1 | . . . . . . . . . . . . . . . . . . . . . . 1 Recycling Unit Hacks 4 | . . . . . . . . . . . . . . . . . . . . . . 4 Report Inventory 2 | . . . . . . . . . . . . . . . . . . . . . . 2 Retrieve Components 2 | . . . . . . . . . . . . . . . . . . . . . . 2 Scanalyzer 15 | . . . . . . 1 . . . . . . . . . . . . 9 . 5 . Insert Component 5 | . . . . . . . . . . . . . . . . . . . 3 . 2 . Analyze 4 | . . . . . . . . . . . . . . . . . . . 2 . 2 . Retrieve Study 6 | . . . . . . 1 . . . . . . . . . . . . 4 . 1 . Garrison Access Hacks 4 | . . . . . 1 . . . . . . . . . . . . . 1 . 2 . Seal Access 3 | . . . . . . . . . . . . . . . . . . . 1 . 2 . Coupler Status 1 | . . . . . 1 . . . . . . . . . . . . . . . . . Unauthorized Hacks 41 | . . . . . 6 . . 2 6 2 . . 6 . . . . . 5 4 2 8 Terminals 32 | . . . . . 6 . . 2 6 2 . . 6 . . . . . 2 . . 8 Track 1 | . . . . . 1 . . . . . . . . . . . . . . . . . Assimilate 4 | . . . . . 2 . . . 1 . . . 1 . . . . . . . . . Botnet 22 | . . . . . 3 . . 2 4 2 . . 2 . . . . . 2 . . 7 Operators 1 | . . . . . . . . . 1 . . . . . . . . . . . . . Sabotage 4 | . . . . . . . . . . . . . 3 . . . . . . . . 1 Fabricators 7 | . . . . . . . . . . . . . . . . . . . 2 3 2 . Report 2 | . . . . . . . . . . . . . . . . . . . . 1 1 . Liberate 1 | . . . . . . . . . . . . . . . . . . . . 1 . . Fabnet 4 | . . . . . . . . . . . . . . . . . . . 2 1 1 . Repair Stations . | . . . . . . . . . . . . . . . . . . . . . . . Recycling Units . | . . . . . . . . . . . . . . . . . . . . . . . Scanalyzers . | . . . . . . . . . . . . . . . . . . . . . . . Garrison Access 2 | . . . . . . . . . . . . . . . . . . . 1 1 . . Reprogram 1 | . . . . . . . . . . . . . . . . . . . . 1 . . Watchers 1 | . . . . . . . . . . . . . . . . . . . 1 . . . Data Cores Recovered 1 | . . . . . . . . . 1 . . . . . . . . . . . . . Used . | . . . . . . . . . . . . . . . . . . . . . . . Hacking Detections 40 | . 1 . . . 4 2 . 2 4 3 1 . 2 . . . . . 6 1 2 12 Full Trace Events . | . . . . . . . . . . . . . . . . . . . . . . . Feedback Events . | . . . . . . . . . . . . . . . . . . . . . . . Feedback Blocked . | . . . . . . . . . . . . . . . . . . . . . . . Robot Schematics Acquired . | . . . . . . . . . . . . . . . . . . . . . . . Robots Built . | . . . . . . . . . . . . . . . . . . . . . . . Authchips . | . . . . . . . . . . . . . . . . . . . . . . . Time . | . . . . . . . . . . . . . . . . . . . . . . . Total Robot Build Rating . | . . . . . . . . . . . . . . . . . . . . . . . Part Schematics Acquired 5 | . . . . . . . . . . . . . . . . . . . 2 . 2 1 Parts Built 2 | . . . . . . . . . . . . . . . . . . . . 2 . . Authchips . | . . . . . . . . . . . . . . . . . . . . . . . Time 69 | . . . . . . . . . . . . . . . . . . . . 69 . . Total Part Build Rating 18 | . . . . . . . . . . . . . . . . . . . . 18 . . Part Studies Acquired 6 | . . . . . . 1 . . . . . . . . . . . . 4 . 1 . Parts Repaired 11 | . . . . . . . . . 2 . . . . . . . . . 3 . 1 5 Time 320 | . . . . . . . . . 58 . . . . . . . . . 64 . 20 178 Parts Recycled . | . . . . . . . . . . . . . . . . . . . . . . . Recycled Matter . | . . . . . . . . . . . . . . . . . . . . . . . Retrieved Matter . | . . . . . . . . . . . . . . . . . . . . . . . Retrieved Components 18 | . . . . . . . . . . . . . . . . . . . . . . 18 Parts Scanalyzed 4 | . . . . . . . . . . . . . . . . . . . 2 . 2 . Part Schematics Acquired 4 | . . . . . . . . . . . . . . . . . . . 2 . 2 . Parts Damaged 1 | . . . . . . . . . . . . . . . . . . . 1 . . . Bothacking | -11 -10 -10 -10 -9 -8 -7 -7 -6 -5 -5 -5 -5 -5 -4 -4 -4 -4 -3 -3 -2 -1 -1 ------------ Run | Yrd Mat Min Exi Min Mat Fac DSF Fac Fac Ext Cet Arc Hub Fac Upp Upp War Pro Res Res Acc Com Used RIF Installer . | . . . . . . . . . . . . . . . . . . . . . . . Robots Hacked 22 | . . . . . . . . . 2 4 1 . . . . . . . . 3 2 10 Non-combat 5 | . . . . . . . . . 2 3 . . . . . . . . . . . . Combat 17 | . . . . . . . . . . 1 1 . . . . . . . . 3 2 10 Robot Hacks Applied 8 | . . . . . . . . . 3 4 1 . . . . . . . . . . . parse_system 4 | . . . . . . . . . 2 1 1 . . . . . . . . . . . no_distress 1 | . . . . . . . . . . 1 . . . . . . . . . . . . find_recycling 2 | . . . . . . . . . 1 1 . . . . . . . . . . . . check_alert 1 | . . . . . . . . . . 1 . . . . . . . . . . . . Relay Couplers Released 3 | . . . . . . . . . . . . . 2 . . . . . . 1 . . Machine Destruction 3 | . . . . . . . . . . . . . 2 . . . . . . 1 . . Fabnet Peak Effective % 6 | . . . . . . . . . . . . . . . . . . . . 6 5 5 Autooverrided 15 | . . . . . . . . . . . . . . . . . . . . 3 2 10 Robots Rewired 12 | . . . . . . . . . . 12 . . . . . . . . . . . . Allies Hacked . | . . . . . . . . . . . . . . . . . . . . . . . Hacks Repelled . | . . . . . . . . . . . . . . . . . . . . . . . Allies | -11 -10 -10 -10 -9 -8 -7 -7 -6 -5 -5 -5 -5 -5 -4 -4 -4 -4 -3 -3 -2 -1 -1 -------- Run | Yrd Mat Min Exi Min Mat Fac DSF Fac Fac Ext Cet Arc Hub Fac Upp Upp War Pro Res Res Acc Com Total Allies 44 | . . 5 . . . . 4 . . 15 5 . . . . . . . . 3 2 10 Largest Group 8 | . . 5 5 3 . . 4 . . 8 6 6 5 . . . . . . 1 1 4 Highest-Rated Group 639 | . . 81 81 40 . . 186 . . 228 639 639 480 . . . . . . 69 82 256 Highest-Rated Ally 159 | . . 31 31 16 . . 90 . . 159 159 159 96 . . . . . . 69 82 82 Total Orders 1 | . . . . . 1 . . . . . . . . . . . . . . . . . RETURN 1 | . . . . . 1 . . . . . . . . . . . . . . . . . Ally Attacks 217 | . . 9 . . . . 5 . . 133 12 . 28 . . . . . . 12 5 13 Total Damage 6103 | . . 104 . . . . 206 . . 3153 521 . 1057 . . . . . . 484 153 425 Kills 34 | . . 2 . . . . . . . 14 5 . 9 . . . . . . 1 1 2 Allies Corrupted 2 | . . . . . . . . . . . . . . . . . . . . . . 2 Allies Melted 2 | . . . . . . . . . . 1 . . . . . . 1 . . . . . Field Lobotomies 4 | . . . . . . . 4 . . . . . . . . . . . . . . . Intel | -11 -10 -10 -10 -9 -8 -7 -7 -6 -5 -5 -5 -5 -5 -4 -4 -4 -4 -3 -3 -2 -1 -1 ------- Run | Yrd Mat Min Exi Min Mat Fac DSF Fac Fac Ext Cet Arc Hub Fac Upp Upp War Pro Res Res Acc Com Active Infowar (turns) 11118 | . . . . . 1127 105 100 387 1010 622 236 44 254 163 37 238 617 148 398 459 338 4835 Optics 11117 | . . . . . 1127 105 100 387 1010 622 236 44 254 163 37 238 617 148 398 458 338 4835 Cloaking 1056 | . . . . . . . . . . . . . . . . . . . . 10 338 708 Jamming 5071 | . . . . . . . . . 829 622 236 44 254 143 37 238 617 148 398 459 338 708 ECM 779 | . . . . . 333 105 100 61 173 . . . . . . . . . . . 7 . Robot Analysis Total . | . . . . . . . . . . . . . . . . . . . . . . . Derelict Logs Recovered 3 | . . 1 . 1 . . . . . . . . . . 1 . . . . . . . Drone Launches 1 | . . . . . 1 . . . . . . . . . . . . . . . . . Drone Recoveries 1 | . . . . . 1 . . . . . . . . . . . . . . . . . Exploration | -11 -10 -10 -10 -9 -8 -7 -7 -6 -5 -5 -5 -5 -5 -4 -4 -4 -4 -3 -3 -2 -1 -1 ------------- Run | Yrd Mat Min Exi Min Mat Fac DSF Fac Fac Ext Cet Arc Hub Fac Upp Upp War Pro Res Res Acc Com Turns Passed 12763 | 49 660 495 182 110 1276 105 100 387 1010 622 236 44 254 163 37 238 617 148 398 459 338 4835 Spaces Moved 15720 | 41 416 650 316 265 571 330 173 456 1501 1108 217 43 397 489 140 679 1100 248 512 1311 873 3884 Core 190 | 12 . . . . . . . . . . . . . 5 . . . . . . . 173 Treads 1880 | . . . . . . . . . . . . . . . . . . . . . . 1880 Legs 539 | 29 416 94 . . . . . . . . . . . . . . . . . . . . Wheels . | . . . . . . . . . . . . . . . . . . . . . . . Hover . | . . . . . . . . . . . . . . . . . . . . . . . Flight 13111 | . . 556 316 265 571 330 173 456 1501 1108 217 43 397 484 140 679 1100 248 512 1311 873 1831 Fastest Speed 23 | 50 120 37 37 37 29 29 27 28 28 28 31 33 23 26 26 26 26 30 26 28 29 28 Average Speed 49 | 103 120 49 37 37 31 29 29 28 28 30 32 33 30 26 26 26 27 30 31 28 29 97 Slowest Speed 250 | 120 120 120 37 37 37 34 109 28 28 111 33 33 37 50 26 26 30 30 32 35 35 250 Overloaded Moves . | . . . . . . . . . . . . . . . . . . . . . . . Propulsion Burnouts . | . . . . . . . . . . . . . . . . . . . . . . . Robots Hopped 82 | . . 1 . 4 . 4 . 1 9 16 . . 4 . . . 6 . 3 9 10 15 Potential Cave-ins . | . . . . . . . . . . . . . . . . . . . . . . . Cave-ins Triggered 1 | . . . . . . . . . . . . . . . . . . . . . . 1 Exploration Rate (%) 47 | 3 54 88 76 34 34 12 94 9 23 83 81 71 38 5 44 68 94 48 14 34 27 58 Regions Visited 22 Branch Regions 12 Pre-discovered Areas 4 | . . 1 1 . . . . . . . . . . . . . 2 . . . . . Known Exits Taken 4 | . . . . . . 1 . . . . . . . 1 . . . . 1 . 1 . Unknown Exits Taken 17 | 1 1 1 1 1 1 . . 1 1 1 1 1 1 . 1 1 1 1 . 1 . . Scrap Searched 2 | . . 1 . . . . . . . . . . . . . 1 . . . . . . Spaces Dug 21 | . . . . . . . . . . . . . . . . . . . . . . 21 Terrain Destroyed 166 | . . . . . . . . . . . . . . . . . . . . . . 166 Melee . | . . . . . . . . . . . . . . . . . . . . . . . Projectile 55 | . . . . . . . . . . . . . . . . . . . . . . 55 AOE 111 | . . . . . . . . . . . . . . . . . . . . . . 111 Terrain Rammed . | . . . . . . . . . . . . . . . . . . . . . . . Walls Destroyed . | . . . . . . . . . . . . . . . . . . . . . . . Machines Disabled . | . . . . . . . . . . . . . . . . . . . . . . . Actions | -11 -10 -10 -10 -9 -8 -7 -7 -6 -5 -5 -5 -5 -5 -4 -4 -4 -4 -3 -3 -2 -1 -1 --------- Run | Yrd Mat Min Exi Min Mat Fac DSF Fac Fac Ext Cet Arc Hub Fac Upp Upp War Pro Res Res Acc Com Total 20072 | 45 520 777 380 272 1659 334 213 713 2052 1364 369 72 524 521 139 739 1411 320 744 1385 934 4585 Wait 3748 | . 68 80 62 12 1063 1 2 254 522 223 139 30 114 13 . 61 309 73 225 56 53 388 Move 15543 | 40 415 647 315 256 570 321 172 453 1483 1075 216 42 389 488 139 678 1090 247 505 1296 852 3854 Hop 74 | . . 1 . 4 . 4 . 1 8 16 . . 4 . . . 3 . 3 5 10 15 Pick Up 63 | . 5 6 1 . 7 2 5 2 5 . . . 3 4 . . 2 . 3 5 3 10 Fast Attach 111 | 5 2 2 . . 3 2 5 1 6 6 1 . 6 3 . . 2 . 4 4 6 53 Attach 42 | . . 1 1 . 4 2 1 2 4 . 1 . 2 8 . . 1 . 1 3 2 9 Detach 6 | . . . . . 1 . . . . . . . . 2 . . . . . . . 3 Swap 14 | . 1 7 . . 1 . 1 . . . . . . 1 . . . . . 2 . 1 Drop 94 | . 1 9 1 . 6 2 9 . 7 6 . . 4 2 . . 3 . 3 7 4 30 Fire 340 | . 28 24 . . 4 . 5 . 17 25 12 . 2 . . . . . . 2 4 217 Melee 9 | . . . . . . . . . . . . . . . . . . . . 5 . 4 Ram . | . . . . . . . . . . . . . . . . . . . . . . . Kick . | . . . . . . . . . . . . . . . . . . . . . . . Crush 1 | . . . . . . . . . . . . . . . . . . . . . . 1 Escape Stasis 24 | . . . . . . . 11 . . 13 . . . . . . . . . . . . Rewire 3 | . . . . . . . 2 . . . . . . . . . 1 . . . . . Trap . | . . . . . . . . . . . . . . . . . . . . . . . Miscellaneous . | . . . . . . . . . . . . . . . . . . . . . . . Route ------- -11/Scrapyard -10/Materials (discovered 2 exits: [*Mat] / *Min) -10/Mines (discovered 2 exits: [*Mat] / *Exi) -10/Exiles (discovered 2 exits: [*Min x2]) -9/Mines (discovered 2 exits: *Mat x2) -8/Materials -7/Factory -7/DSF -6/Factory -5/Factory -5/Extension (discovered 2 exits: [*Fac] / *Cet) -5/Cetus -5/Archives -5/Hub_04(d) (discovered 2 exits: [*Fac x2]) -4/Factory -4/Upper Caves -4/Upper Caves (discovered 2 exits: *Res / *War) -4/Warlord -3/Proximity Caves -3/Research (discovered 6 exits: *Res x3 / Arm / Qua x2) -2/Research (discovered 3 exits: *Acc x2 / *Tes) -1/Access -1/Command History --------- Turn | Location | Event 27 | -11/Scrapyard | Discovered new exit (range 15) 50 | -11/Scrapyard | Entered Materials 114 | -10/Materials | Discovered new exit (range 7) 128 | -10/Materials | Discovered new exit (range 15) 307 | -10/Materials | Build established: Mutant 650 | -10/Materials | Derelicts attacked the area 710 | -10/Materials | Entered Mines 886 | -10/Mines | Discovered new exit (range 9) 957 | -10/Mines | Deemed a non-threat by the Exiles lab entrance 957 | -10/Mines | Discovered new exit (range 5) 1007 | -10/Mines | Assisted by bots powering up and referring to "LRC-V3" 1009 | -10/Mines | Learned Materials emergency access door positions 1013 | -10/Mines | Learned location of Storage (-8) 1066 | -10/Mines | Found the Drone Emporium 1069 | -10/Mines | Found Prototype Device 1128 | -10/Mines | Build established: Scavenger-Mutant 1205 | -10/Mines | Entered Exiles 1205 | -10/Exiles | Accompanied by 5 allies 1211 | -10/Exiles | Discovered new exit (range 15) 1215 | -10/Exiles | Met 8R-AWN 1222 | -10/Exiles | Met EX-HEX 1233 | -10/Exiles | Met EX-BIN 1235 | -10/Exiles | Led the pair of lost Derelicts to a safe place 1238 | -10/Exiles | Aligned with FarCom system 1238 | -10/Exiles | Given EX-Vault access code 1247 | -10/Exiles | Opened EX-Vault 1251 | -10/Exiles | Found Field Lobotomy Kit 1259 | -10/Exiles | Warned to stay clear of 0b10 Research branches 1269 | -10/Exiles | Met EX-DEC 1272 | -10/Exiles | Learned location of Zion (-6) 1287 | -10/Exiles | Visited The Gauntlet 1319 | -10/Exiles | Discovered new exit (range 14) 1387 | -10/Exiles | Left Exiles lab with Field Lobotomy Kit 1387 | -10/Exiles | Entered Mines 1387 | -9/Mines | Accompanied by 3 allies 1387 | -9/Mines | Discovered new exit (range 10) 1403 | -9/Mines | A weapon hastily lodged in a ceiling crevice suddenly fell to the ground 1417 | -9/Mines | Discovered new exit (range 9) 1422 | -9/Mines | Learned Materials terminal intel 1479 | -9/Mines | Assembled infested the area 1484 | -9/Mines | Assisted by a Guerilla fighting off Assembled 1497 | -9/Mines | Entered Materials 1497 | -8/Materials | Evolved 4 slots: Propulsion x2, Utility x2 1499 | -8/Materials | Loaded intel: 12 terminal locations 1501 | -8/Materials | Identified Sensor Drone Bay 1800 | -8/Materials | Build established: Scavenger-Sprinter 2437 | -8/Materials | Discovered new exit (range 17) 2773 | -8/Materials | Entered Factory 2773 | -7/Factory | Evolved 2 slots: Power x1, Propulsion x1 2878 | -7/Factory | Identified exit to DSF 2878 | -7/Factory | Entered DSF 2891 | -7/DSF | Additional patrols routed to DSF 2898 | -7/DSF | Assimilated X-62 Marksman with FLK Orb 2904 | -7/DSF | Assimilated H-61 Shepherd with FLK Orb 2907 | -7/DSF | Assimilated X-57 Shotgunner with FLK Orb 2910 | -7/DSF | Assimilated Y-54 Guardian with FLK Orb 2947 | -7/DSF | Discovered new exit (range 14) 2978 | -7/DSF | Entered Factory 2978 | -6/Factory | Evolved 2 slots: Utility x2 3285 | -6/Factory | Build established: Hacker-Sprinter 3338 | -6/Factory | Discovered new exit (range 7) 3365 | -6/Factory | Entered another Factory area 3365 | -5/Factory | Evolved 2 slots: Utility x2 3695 | -5/Factory | Repaired Lgt. Ion Engine 3728 | -5/Factory | Repaired Cooling System 4373 | -5/Factory | Discovered new exit (range 9) 4375 | -5/Factory | Entered Extension 4400 | -5/Extension | Rescued a captive Derelict 4498 | -5/Extension | Rescued a captive Derelict 4647 | -5/Extension | Lost 3 allies 4726 | -5/Extension | Spotted B-75 Beast 4796 | -5/Extension | Spotted B-75 Beast 4892 | -5/Extension | Rescued a captive Derelict 4893 | -5/Extension | Rescued A7 4898 | -5/Extension | Rescued a captive Derelict 4905 | -5/Extension | Discovered new exit (range 10) 4906 | -5/Extension | Discovered new exit (range 6) 4997 | -5/Extension | Entered Cetus 4997 | -5/Cetus | Accompanied by 1 ally (A7) 5002 | -5/Cetus | Acquired a Cetus Manufacturing Module code from A7 5005 | -5/Cetus | Spotted Cetus Guard 5005 | -5/Cetus | Spotted Cetus Guard 5007 | -5/Cetus | Spotted Cetus Guard 5007 | -5/Cetus | Spotted Cetus Guard 5016 | -5/Cetus | Allies destroyed Cetus Guard 5030 | -5/Cetus | Allies destroyed Cetus Guard 5032 | -5/Cetus | Allies destroyed Cetus Guard 5035 | -5/Cetus | Allies destroyed Cetus Guard 5060 | -5/Cetus | Lost 3 parts (1p1n1u) 5065 | -5/Cetus | Started Cetus Manufacturing Module 5070 | -5/Cetus | Escorted A7 to Cetus Mainframe 5090 | -5/Cetus | Manufactured an Enhanced Grunt 5115 | -5/Cetus | Manufactured an Enhanced Grunt 5140 | -5/Cetus | Manufactured an Enhanced Grunt 5165 | -5/Cetus | Manufactured an Enhanced Grunt 5190 | -5/Cetus | Manufactured an Enhanced Grunt 5202 | -5/Cetus | Discovered new exit (range 17) 5233 | -5/Cetus | Entered Archives 5233 | -5/Archives | Accompanied by 6 allies (A7) 5238 | -5/Archives | Received a hacking code to weaken MAIN.C 5238 | -5/Archives | Met Zhirov 5239 | -5/Archives | Discovered new exit (range 18) 5242 | -5/Archives | Read partially decrypted archive contents 5244 | -5/Archives | Reinforcements dispatched to Archives 5277 | -5/Archives | Entered Hub_04(d) 5277 | -5/Hub_04(d) | Accompanied by 5 allies 5373 | -5/Hub_04(d) | Build established: Wizard-Sprinter 5478 | -5/Hub_04(d) | Discovered new exit (range 18) 5482 | -5/Hub_04(d) | Network Hub disabled 5505 | -5/Hub_04(d) | Spotted Lightning 5508 | -5/Hub_04(d) | Spotted Lightning 5509 | -5/Hub_04(d) | Spotted Lightning 5524 | -5/Hub_04(d) | Spotted Lightning 5528 | -5/Hub_04(d) | Discovered new exit (range 9) 5530 | -5/Hub_04(d) | Network Hub disabled 5531 | -5/Hub_04(d) | Entered Factory 5531 | -4/Factory | Evolved 2 slots: Utility x2 5542 | -4/Factory | Discovered new exit (range 6) 5689 | -4/Factory | Identified exit to Upper Caves 5694 | -4/Factory | Entered Upper Caves 5728 | -4/Upper Caves | Discovered new exit (range 7) 5731 | -4/Upper Caves | Entered another Upper Caves area 5738 | -4/Upper Caves | Discovered new exit (range 4) 5936 | -4/Upper Caves | Attracted the attention of an 0b10 outpost 5946 | -4/Upper Caves | Encountered a Warlord checkpoint 5967 | -4/Upper Caves | Discovered new exit (range 10) 5969 | -4/Upper Caves | Entered Warlord 6096 | -4/Warlord | Met Warlord 6115 | -4/Warlord | Learned Factory repair station intel 6115 | -4/Warlord | Learned Armory repair station intel 6115 | -4/Warlord | Learned Armory garrison access intel 6115 | -4/Warlord | Learned 4 Access zone layouts 6115 | -4/Warlord | Learned 4 Testing zone layouts 6116 | -4/Warlord | Learned location of Testing (-2) 6116 | -4/Warlord | Learned location of Command (-1) 6121 | -4/Warlord | Warlord's base attacked by MAIN.C 6133 | -4/Warlord | Found Prototype Device 6170 | -4/Warlord | Found Prototype Energy Gun 6170 | -4/Warlord | Identified Vortex Shotgun 6174 | -4/Warlord | Found Vortex Shotgun 6391 | -4/Warlord | Lost 4 allies 6436 | -4/Warlord | Lost 3 allies 6471 | -4/Warlord | Warlord forces counterattacked 6578 | -4/Warlord | Opened side exit 6584 | -4/Warlord | Discovered new exit (range 9) 6586 | -4/Warlord | Entered Proximity Caves 6614 | -3/Proximity Caves | Spotted B-86 Titan 6665 | -3/Proximity Caves | Discovered new exit (range 2) 6734 | -3/Proximity Caves | Entered Research 6734 | -3/Research | Evolved 2 slots: Utility x2 6735 | -3/Research | Identified exit to Quarantine 6768 | -3/Research | Repaired Broken Antimatter Reactor 6786 | -3/Research | Repaired Imp. Surge Thruster 6808 | -3/Research | Repaired Field Propulsion Array 6908 | -3/Research | Identified Minesniffer Drone Bay 6959 | -3/Research | Discovered new exit (range 13) 6964 | -3/Research | Identified exit to Research 6964 | -3/Research | Watched by a mysterious "MATRIX" hacker 7073 | -3/Research | Identified exit to Armory 7132 | -3/Research | Entered another Research area 7132 | -2/Research | Warlord forces began assault on 0b10 7132 | -2/Research | Evolved 2 slots: Power x1, Propulsion x1 7242 | -2/Research | Research machine network offline 7270 | -2/Research | Fabricated Adv. Cloaking Device (x2) 7373 | -2/Research | Spotted 1R-TFW(D) 7419 | -2/Research | Borebot progress halted 7429 | -2/Research | Met up with Warlord 7538 | -2/Research | Discovered new exit (range 6) 7539 | -2/Research | Discovered new exit (range 5) 7542 | -2/Research | Identified exit to Testing 7573 | -2/Research | Discovered new exit (range 5) 7578 | -2/Research | Found Prototype Processor 7578 | -2/Research | Identified Exp. Melee Analysis Suite 7591 | -2/Research | Entered Access 7591 | -1/Access | Evolved 2 slots: Propulsion x1, Utility x1 7592 | -1/Access | Identified exit to Command 7743 | -1/Access | Repaired Antimatter Reactor+ 7842 | -1/Access | Spotted B-99 Colossus 7862 | -1/Access | Central database locked down 7888 | -1/Access | Spotted B-99 Colossus 7914 | -1/Access | Found Prototype Device 7914 | -1/Access | Identified Exp. ECM Suite 7921 | -1/Access | Lost 4 parts (1p1u2w) 7929 | -1/Access | Entered Command 8080 | -1/Command | Repaired Field Propulsion Array+ 8112 | -1/Command | Repaired Field Propulsion Array+ 8145 | -1/Command | Repaired Antimatter Reactor+ 8323 | -1/Command | Disengaged cave seal 8324 | -1/Command | Welcomed Warlord to Command 8489 | -1/Command | Repaired Broken Impulse Thruster Array+ 8513 | -1/Command | Lost 4 allies 8579 | -1/Command | Spotted M Guard 8579 | -1/Command | Spotted M Guard 8579 | -1/Command | Spotted Combat Programmer 8584 | -1/Command | Warlord commented on Warlord statues 8592 | -1/Command | Spotted Combat Programmer 8622 | -1/Command | Met MAIN.C 8622 | -1/Command | 0b10 Conduit disabled 8663 | -1/Command | Found Prototype Launcher 8665 | -1/Command | Found Prototype Reactor 8682 | -1/Command | Core integrity fell below 50% 8691 | -1/Command | Phase Generator disabled 8704 | -1/Command | Lost 13 parts (2p3n6u2w) 8706 | -1/Command | Central database locked down 8727 | -1/Command | Spotted B-99 Colossus 8741 | -1/Command | Spotted Alpha 7 8765 | -1/Command | Identified Hellfire Missile Launcher 8766 | -1/Command | Identified Zero-point Reactor 8797 | -1/Command | Lost 3 allies 8817 | -1/Command | Found Prototype Device 8817 | -1/Command | Identified Thermal Barrier 8906 | -1/Command | Repaired Hellfire Missile Launcher 8966 | -1/Command | Core integrity fell below 20% 8967 | -1/Command | Lost 3 parts (3n) 9064 | -1/Command | Disengaged cave seal 9064 | -1/Command | Derelicts emerged from the dark tunnel 9177 | -1/Command | Derelicts emerged from the dark tunnel 9208 | -1/Command | Build established: Hacker-Mutant 9645 | -1/Command | Lost 10 allies 9837 | -1/Command | Destroyed Alpha 7 10670 | -1/Command | Build established: Scavenger-Mutant 10844 | -1/Command | Crushed by falling debris 10875 | -1/Command | Lost 3 parts (3u) 12154 | -1/Command | Destroyed B-99 Colossus 12684 | -1/Command | Spotted Striker 12684 | -1/Command | Spotted Alpha 7 12684 | -1/Command | Spotted Executioner 12694 | -1/Command | Spotted Executioner 12695 | -1/Command | Spotted B-99 Colossus 12715 | -1/Command | Destroyed Striker 12720 | -1/Command | Destroyed Executioner 12730 | -1/Command | Spotted Executioner 12730 | -1/Command | Spotted Executioner 12764 | -1/Command | Destroyed by Executioner with Helical Railgun Last Messages --------------- Acquired 1 matter. Spk. Heavy Treads destroyed. The unstable cave ceiling collapses. Penetrated by Slug. Slug penetrates Wall. Penetrated by Slug. Slug penetrates Terminal. Acquired 18 matter. Penetrated by Slug. Slug penetrates Wall. Micro-nuke intercepted. Penetrated by Slug. Slug penetrates Wall. Penetrated by Slug. Slug penetrates Wall. Penetrated by Slug. Slug penetrates Wall. K-01 Serf destroyed. Slug penetrates Earth. Penetrated by Slug. Map ----- +----------------------------------------------------+ | ### ## # ##+###### #####"" ! #?# #??##### | | #?## #??# #???##" !! #?# #??# # # | | ##### * ##?# #????## #?# #??### | | ? # "### #?????# ###+#### # | | # ### !" " #?????# " | | "###" """" ##########+" # | | ##" + + #" | | " "# #### # ""####"########## # # | | ##################??###??????### # # | | #????????########????????????# # # # | | #???????? ##??????????### # # ## | | #???????? ##?????######;;;#%+ " ### # | | #???????? ##?????# ! # # #?# #! | | #????????""" ##?????# ; # T #####"* | | #???????? " ##?????# "" =!#%# % "## # | | #????????" " ##?????#""" % *%% ##;####""""""" | | ####???????" " ##?????#"T %% ;% [!%![*% |* % | | "#??????? " ##?????# " % ;;; ############ | | ##???????""" ##?????# !% ; % #??????????#[ | | "#???????? ##?????# =*% %; #?##########% | | ""#???????? ##?????# *!!% ; ###?# "% | | ""#???????? ##??####;[;!%!=!!######!!! " | | ""#?????? #####??# %* %%!** ;!! ## | | ""#???# ####??# !%!%==% #!! #? | | T"#??# ^ ###??### =!%=%%= ; #? | | ""#??# ##### # @!*%!= # ?# | | ""#??# ### =%!! ; + | | ""#??# ### * # = ## | | ""#??# ### # ??? | | "#??# ### % ###+############## ??? | | #??# ### = = #????????????? | | ###?## ### % #????????????? | | # ## #?# % E % #????????????? | | # # ! ?## EE7 #????????????? | | #### [% ### = #????????????? | | ! BB ==%== #????????????? | | BBBB%= " #????????????? | | BB % " #????????????? | | % T" #????????????? | | ###### / %;;; """ #????????????? | | ?# = ;% " %#????????????? | | ?# % %;%% ##+###??????????? | | ?# % %%# % # #??????????? | | ?# "" %% % " # #??????????? | | ?# """ % "##"# " "###### ] #??????????? | | ?# """" " # ###""T "#????# #??????????? | | ?# ! "" " " # ??# """ #????# #??????????? | | ?#!! #?#?#######????# #??????????? | | ?# = #??????????????# #??????????? | | ?##################???????????????####???????????? | +----------------------------------------------------+ Best States ------------- Heat Dissipation 166 Energy Generation 73 Energy Capacity 740 Matter Stores 300 Matter Capacity 300 Sight Range 20 Terrain Scan Density 10 ECM Strength 3 Jamming Range 14 Cloak Strength 4 Power Amplification 30 Additional Mass Support 16 Base Temperature (-) 200 Corruption Containment 12 Corruption Block 15 Armor Coverage 600 Resistance: KI 30 Resistance: TH 50 Phase Shifting 15 Evasion (%) 74 Melee Accuracy 12 Target Analysis 8 Armor Integrity Analysis 30 Recoil Reduction 13 Energy Filtering 50 Kinecelleration 40 Offensive Hacking 54 Defensive Hacking 40 Authchip Count 1 Item Schematics ----------------- Imp. Surge Thruster | -3/Research | Scanalyzed Cld. Nuclear Pulse Thruster | -3/Research | Scanalyzed Imp. Q-thruster | -1/Access | Scanalyzed Diametric Drive | -1/Access | Scanalyzed Enh. Quantum Rifle | -1/Command | Hacked Robot Schematics ------------------ None Fabricated ------------ Adv. Cloaking Device | x2 | -2/Research | Preloaded Repaired ---------- Lgt. Ion Engine | 20% | -5/Factory Cooling System | 56% | -5/Factory Antimatter Reactor | 42% | -3/Research | Broken Imp. Surge Thruster | 43% | -3/Research Field Propulsion Array | 66% | -3/Research Antimatter Reactor | 38% | -1/Access Field Propulsion Array | 33% | -1/Command Field Propulsion Array | 47% | -1/Command Antimatter Reactor | 63% | -1/Command Impulse Thruster Array | 84% | -1/Command | Broken Hellfire Missile Launcher | 18% | -1/Command Studied --------- Flight Unit | -7/Factory | Hacked Impulse Thruster Array | -3/Research | Hacked Field Propulsion Array | -3/Research | Hacked Antimatter Reactor | -3/Research | Hacked Imp. Surge Thruster | -3/Research | Hacked Mic. Antimatter Reactor | -1/Access | Hacked Alien Tech Used ----------------- None Achievements -------------- All-out Warlord Analysis Probe Hack The Planet I Have Friends Everywhere Meet Your Maker Professional Mechanic Prolific Hacker Showdown Total Silence Challenges ------------ None Game ------ Seed BehemothMissileSink Manual? 0 Play Time 03:15:48 Cumulative 65.3 hours Start 2026.07.30 @ 11:03:14 End 2026.07.30 @ 14:52:33 Sessions 1 Manual Loads 0 Difficulty Rogue Special Mode None Game No. 65 Rogue 65 Adventurer 0 Explorer 0 Win Type - Total 1 Types 1/0/0/0/0/0/0/0/0/0 Lore% 64 Gallery% 44 Achievement% 39 Wizard Run 0 Options --------- Layout 1 ASCII 0 Keyboard 0 Movement Mouse Keybinds 0 Fullscreen 1 Font 24/X11 Map View 50x35 Zoom Use 0% Tactical HUD 0 Map Filters NONE Filters NONE Steam 1 RUN: c1a6df81-f3b9-48ef-a197-0a265f5085b6